Cogmind - Beta 10.2 *** ADVENTURER MODE // 2021.06.12 @ 18:35:14 Player: Agod Result: Destroyed by S-27 Virus with Autogun Performance ------------- Evolutions (3) 1500 Regions Visited (6) 1200 Robots Destroyed (34) 170 Value Destroyed (1304) 1304 Prototype IDs (2) 40 Alien Tech Used (0) 0 Bonus (0) 0 TOTAL SCORE: 4214 Bonus ------- None Cogmind --------- Core Integrity 0/700 Matter 95/450 Energy 100/100 System Corruption 5% Temperature Cool (0) Movement Core (150) Ox2 Location -7/Lower Caves Parts ------- > --- POWER (2) -------- (None) > --- PROPULSION (2) --- (None) > --- UTILITY (6) ------ Small Storage Unit Large Matter Pod Component Analysis Suite Recalibrator > --- WEAPON (3) ------- (None) > --- INVENTORY (6) ---- Recoil Stabilizer System Shield Peak State ------------ > --- POWER ------------ (None) > --- PROPULSION ------- (None) > --- UTILITY ---------- Improved Heat Sink Large Storage Unit Large Matter Pod Improved Signal Interpreter Terrain Scanner System Shield > --- WEAPON ----------- Assault Cannon Rocket Launcher Remote Datajack > --- INVENTORY -------- Small Storage Unit Advanced Weight Redist. System Component Analysis Suite Recalibrator Particle Cannon Grenade Launcher [Rating: 21] Favorites ----------- Power Ion Engine Engine Ion Engine Propulsion Light Treads Treads Light Treads Wheel Wheel Utility Large Matter Pod Device Terrain Scanner Storage Large Matter Pod Processor Signal Interpreter Hackware System Shield Protection Light Armor Plating Weapon EM Shotgun Energy Gun EM Shotgun Energy Cannon Particle Cannon Ballistic Gun Assault Rifle Ballistic Cannon Light Cannon Launcher Rocket Launcher Special Weapon Remote Datajack Build | -11 -10 -9 -9 -8 -7 -7 ------- Run | Scr Mat Mat Min Mat Fac Low Slots Evolved 6 | . . 2 . 2 2 . Power 1 | . . . . . 1 . Propulsion . | . . . . . . . Utility 4 | . . 2 . 1 1 . Weapon 1 | . . . . 1 . . Parts Attached 46 | 6 4 3 . 8 12 13 Power 4 | 1 . . . 1 1 1 Engine 4 | 1 . . . 1 1 1 Core . | . . . . . . . Reactor . | . . . . . . . Propulsion 5 | 2 . 1 . 1 1 . Treads 4 | 2 . 1 . 1 . . Leg . | . . . . . . . Wheel 1 | . . . . . 1 . Hover . | . . . . . . . Flight . | . . . . . . . Utility 16 | 1 2 2 . 2 4 5 Device 8 | . 1 2 . . 2 3 Storage 4 | 1 1 . . 1 . 1 Processor 2 | . . . . 1 1 . Hackware 1 | . . . . . . 1 Protection 1 | . . . . . 1 . Artifact . | . . . . . . . Weapon 21 | 2 2 . . 4 6 7 Energy Gun 6 | . . . . 3 3 . Energy Cannon 3 | . . . . 1 . 2 Ballistic Gun 2 | 2 . . . . . . Ballistic Cannon 6 | . 2 . . . 2 2 Launcher 3 | . . . . . 1 2 Special Weapon 1 | . . . . . . 1 Impact Weapon . | . . . . . . . Slashing Weapon . | . . . . . . . Piercing Weapon . | . . . . . . . Special Melee Weapon . | . . . . . . . Unidentified Prototypes . | . . . . . . . Parts Lost 24 | . . . . 2 10 12 Power 4 | . . . . 1 2 1 Propulsion 4 | . . . . 1 3 . Utility 7 | . . . . . 1 6 Weapon 9 | . . . . . 4 5 Highest Loss Streak 8 | . . . . 1 5 8 Average Slot Usage (%) 83 | . 92 100 100 98 78 56 Engine 6 | . 14 11 11 8 3 . Treads 13 | . 28 22 22 17 9 . Device 17 | . 4 22 22 18 15 19 Storage 17 | . 16 22 22 18 15 17 Processor 4 | . . . . 9 7 4 Protection 1 | . . . . . 5 . Energy Gun 7 | . . . . 17 18 . Ballistic Gun 2 | . 20 . . . . . Ballistic Cannon 8 | . 7 22 22 6 1 6 Launcher 1 | . . . . . . 3 Naked Turns . | . . . . . . . Heaviest Build 40 | 13 18 20 20 36 36 40 Greatest Support 43 | 40 40 43 43 43 43 3 Greatest Overweight (x) 13 | 2 . . . 1 10 13 Average Overweight (x) 1 | . . . . . 1 8 Largest Inventory Capacity 12 | 6 6 6 6 10 10 12 Average Capacity 8 | 5 6 6 6 9 10 10 Most Carried 10 | 5 6 6 6 10 10 8 Average Carried 5 | 2 2 5 5 7 8 4 Final Capacity 10 | 6 6 6 6 10 10 6 Final Carried 7 | 2 6 6 6 7 7 2 Class Distribution -------------------- 59% | Mutant 19% | Skirmisher 13% | Scavenger-Skirmisher 4% | Hacker-Mutant Dominant Class ---------------- Mutant | -10/Materials Mutant | -9/Materials Mutant | -9/Mines Skirmisher | -8/Materials Scavenger-Skirmisher | -7/Factory Mutant | -7/Lower Caves Resources | -11 -10 -9 -9 -8 -7 -7 ----------- Run | Scr Mat Mat Min Mat Fac Low Matter Collected 1053 | 213 85 220 66 279 180 10 Remotely . | . . . . . . . Salvage Created 1074 | . 108 220 22 377 332 15 Parts 63 | . 8 15 1 17 20 2 Haulers Intercepted . | . . . . . . . Recyclers Shooed 1 | . . . . . 1 . Parts Field Recycled . | . . . . . . . Retrieved Matter . | . . . . . . . Parts Self-Destructed 1 | . . . . . . 1 Prevented . | . . . . . . . Kills | -11 -10 -9 -9 -8 -7 -7 ------- Run | Scr Mat Mat Min Mat Fac Low Combat Hostiles Destroyed 26 | . 2 4 3 9 6 2 Guns 4 | . 2 . . 2 . . Cannons 18 | . . 4 3 6 3 2 AOE 4 | . . . . 1 3 . Classes Destroyed 9 | . 2 2 1 1 2 1 Worker 2 | . . 1 . . 1 . Tunneler 1 | . . . . . 1 . Watcher 5 | . 1 2 . 1 1 . Swarmer 4 | . . . 3 . . 1 Grunt 10 | . 2 1 . 6 1 . Sentry 7 | . . 3 . 2 2 . Hunter 1 | . . . . 1 . . Programmer 3 | . . . . . 3 . Behemoth 1 | . . . . . . 1 Best Kill Streak 4 | . 2 4 3 3 2 1 Combat Bots Only 3 | . 2 3 3 3 2 1 Max Kills in Single Turn 1 | . 1 1 1 1 1 1 Gunslinging . | . . . . . . . Exploded 1 | . . . . 1 1 . Melee . | . . . . . . . Uniques/NPCs Destroyed . | . . . . . . . Combat | -11 -10 -9 -9 -8 -7 -7 -------- Run | Scr Mat Mat Min Mat Fac Low Damage Taken 3031 | . 162 68 23 637 749 1392 Core 869 | . 19 9 5 135 93 608 Absorbed by Shields . | . . . . . . . Core Remaining (%) 90 | 100 92 . 96 75 . . Volleys Fired 116 | . 12 11 4 29 24 36 Largest 3 | . 2 2 2 3 3 1 Hottest 138 | . 70 70 70 138 135 68 Shots Fired 210 | . 24 22 8 77 42 37 Gun 74 | . 20 . . 21 33 . Cannon 123 | . 4 22 8 56 9 24 Launcher 12 | . . . . . . 12 Special 1 | . . . . . . 1 Kinetic 129 | . 24 22 8 44 9 22 Thermal 14 | . . . . 12 . 2 Explosive 12 | . . . . . . 12 Electromagnetic 54 | . . . . 21 33 . Robot Hit Streak 36 | . 10 20 25 36 22 24 Robot Miss Streak 2 | . 1 . . 2 2 1 Penetration Max . | . . . . . . . Secondary Targets . | . . . . . . . Shots Hit Robots 169 | . 20 17 5 56 37 34 Core Hits 76 | . 7 9 3 26 23 8 Critical Hits 1 | . . 1 . . . . Critical Kills . | . . . . . . . Critical Parts Destroyed 1 | . . 1 . . . . Melee Attacks . | . . . . . . . Impact . | . . . . . . . Slashing . | . . . . . . . Piercing . | . . . . . . . Sneak Attacks . | . . . . . . . Combat Hostiles . | . . . . . . . Follow-up Attacks . | . . . . . . . Damage Inflicted 3502 | . 236 301 83 1248 729 905 Guns 803 | . 198 . . 372 233 . Cannons 1814 | . 35 301 83 636 241 518 Explosions 879 | . . . . 240 252 387 Melee . | . . . . . . . Ramming 6 | . 3 . . . 3 . Kinetic 1780 | . 233 301 83 450 241 472 Thermal 724 | . . . . 426 252 46 Explosive 387 | . . . . . . 387 Electromagnetic 605 | . . . . 372 233 . Impact . | . . . . . . . Slashing . | . . . . . . . Piercing . | . . . . . . . Highest Corruption 5 | . . . . . 5 5 Average Corruption 4 | . . . . . 4 5 Corruption Purged . | . . . . . . . Effects 31 | . . . . . 7 24 Message Errors 6 | . . . . . 2 4 Matter Fused 8 | . . . . . 1 7 Heat Flow Errors 3 | . . . . . 1 2 Energy Discharges 4 | . . . . . 1 3 Parts Rejected 2 | . . . . . 1 1 Data Loss (minor) 2 | . . . . . 1 1 Data Loss (major) 3 | . . . . . . 3 Misfires 1 | . . . . . . 1 Targeting Errors 2 | . . . . . . 2 Overload Shots . | . . . . . . . Overflow Damage 189 | . . . . 87 87 15 Projectiles 13 | . . . . . 13 . Explosions 176 | . . . . 87 74 15 Melee . | . . . . . . . Knockbacks 6 | . 1 1 . 3 1 . Impact . | . . . . . . . Kinetic 6 | . 1 1 . 3 1 . Secondary . | . . . . . . . Self-Inflicted Damage 370 | . . . . 116 254 . Shots 8 | . . . . 3 5 . Rammed 5 | . 3 . . . 2 . Targets Rammed 5 | . 3 . . . 2 . Kicked . | . . . . . . . Crushed . | . . . . . . . Highest Temperature 356 | . 9 24 . 356 185 224 Average Temperature 85 | . 3 14 . 122 49 55 Received Heat Transfer 687 | . 99 42 . 216 87 243 Effects 2 | . . . . 2 . . Energy Bleed 1 | . . . . 1 . . Interference 1 | . . . . 1 . . Siege Activations . | . . . . . . . Robots Corrupted . | . . . . . . . Combat Hostiles . | . . . . . . . Parts Fried 4 | . . . . 1 3 . Impact Corruptions . | . . . . . . . Robots Melted . | . . . . . . . Combat Hostiles . | . . . . . . . Parts Melted 1 | . . . . . 1 . Heat Transferred 607 | . . . . 483 50 74 Parts Sabotaged . | . . . . . . . Parts Stolen . | . . . . . . . Parts Stripped . | . . . . . . . Power Chain Reactions 6 | . . . . 2 4 . Missiles Intercepted . | . . . . . . . Alert | -11 -10 -9 -9 -8 -7 -7 ------- Run | Scr Mat Mat Min Mat Fac Low Peak Influence 202 | . 53 196 70 202 155 . Initial 73 | . . 7 . 22 73 . Average 72 | . 24 88 41 100 82 . Maximum Alert Level 1 | . . . . 1 . . Low Security (%) 93 | 100 100 100 100 73 100 . Level 1 6 | . . . . 26 . . Level 2 . | . . . . . . . Level 3 . | . . . . . . . Level 4 . | . . . . . . . Level 5 . | . . . . . . . High Security . | . . . . . . . Max Security . | . . . . . . . Squads Dispatched 3 | . . . . 1 2 . Investigation 1 | . . . . 1 . . Extermination 2 | . . . . . 2 . Reinforcement . | . . . . . . . Assault . | . . . . . . . Garrison . | . . . . . . . Intercept . | . . . . . . . Construction Impeded . | . . . . . . . Haulers Reinforced . | . . . . . . . Stealth | -11 -10 -9 -9 -8 -7 -7 --------- Run | Scr Mat Mat Min Mat Fac Low Distress Signals 3 | . . 1 . 1 1 . Communications Jammed . | . . . . . . . Distress Signals . | . . . . . . . Times Spotted 51 | . 5 6 3 15 9 13 Peak Tracking Total 12 | . 2 4 3 5 2 12 Tactical Retreats 1 | . . 1 . . . . Traps | -11 -10 -9 -9 -8 -7 -7 ------- Run | Scr Mat Mat Min Mat Fac Low Traps Triggered 2 | . 1 . . 1 . . Indirectly . | . . . . . . . Trap Hack Attempts . | . . . . . . . Triggered . | . . . . . . . Disarmed . | . . . . . . . Reprogrammed . | . . . . . . . Reused . | . . . . . . . Traps Extracted . | . . . . . . . Installed . | . . . . . . . Triggered . | . . . . . . . Machines | -11 -10 -9 -9 -8 -7 -7 ---------- Run | Scr Mat Mat Min Mat Fac Low Machines Disabled 5 | . . . . 1 4 . Max in Single Turn 4 | . . . . 1 4 . Machines Sabotaged . | . . . . . . . Garrisons Compromised . | . . . . . . . Overloaded Fab Kills . | . . . . . . . Fab Network Shutdowns . | . . . . . . . Hacking | -11 -10 -9 -9 -8 -7 -7 --------- Run | Scr Mat Mat Min Mat Fac Low Machines Accessed 6 | . 2 1 1 1 1 . Terminals 5 | . 2 1 1 1 . . Fabricators 1 | . . . . . 1 . Repair Stations . | . . . . . . . Recycling Units . | . . . . . . . Scanalyzers . | . . . . . . . Garrison Access . | . . . . . . . Total Hacks 12 | . 5 1 2 2 2 . Successful 6 | . 3 1 1 1 . . Failed 6 | . 2 . 1 1 2 . Catastrophic . | . . . . . . . Database Lockouts . | . . . . . . . Manual . | . . . . . . . Terminals 10 | . 5 1 2 2 . . Fabricators 2 | . . . . . 2 . Repair Stations . | . . . . . . . Recycling Units . | . . . . . . . Scanalyzers . | . . . . . . . Garrison Access . | . . . . . . . Terminal Hacks 6 | . 3 1 1 1 . . Record 1 | . . . 1 . . . Robot Analysis 1 | . . . . 1 . . Prototype ID Bank 1 | . . 1 . . . . Locate Traps 1 | . 1 . . . . . Dispatch Records 1 | . 1 . . . . . Zone Layout 1 | . 1 . . . . . Fabricator Hacks . | . . . . . . . Repair Station Hacks . | . . . . . . . Recycling Unit Hacks . | . . . . . . . Scanalyzer . | . . . . . . . Garrison Access Hacks . | . . . . . . . Unauthorized Hacks . | . . . . . . . Terminals . | . . . . . . . Fabricators . | . . . . . . . Repair Stations . | . . . . . . . Recycling Units . | . . . . . . . Scanalyzers . | . . . . . . . Garrison Access . | . . . . . . . Data Cores Recovered . | . . . . . . . Used . | . . . . . . . Hacking Detections 5 | . 2 . 1 1 1 . Full Trace Events . | . . . . . . . Feedback Events . | . . . . . . . Feedback Blocked . | . . . . . . . Robot Schematics Acquired . | . . . . . . . Robots Built . | . . . . . . . Matter . | . . . . . . . Time . | . . . . . . . Total Robot Build Rating . | . . . . . . . Part Schematics Acquired . | . . . . . . . Parts Built . | . . . . . . . Matter . | . . . . . . . Time . | . . . . . . . Total Part Build Rating . | . . . . . . . Parts Repaired . | . . . . . . . Time . | . . . . . . . Parts Recycled . | . . . . . . . Recycled Matter . | . . . . . . . Retrieved Matter . | . . . . . . . Retrieved Components . | . . . . . . . Parts Scanalyzed . | . . . . . . . Part Schematics Acquired . | . . . . . . . Parts Damaged . | . . . . . . . Bothacking | -11 -10 -9 -9 -8 -7 -7 ------------ Run | Scr Mat Mat Min Mat Fac Low Used RIF Installer . | . . . . . . . Robots Hacked 1 | . . . . . . 1 Non-combat . | . . . . . . . Combat 1 | . . . . . . 1 Robot Hacks Applied 1 | . . . . . . 1 parse_system 1 | . . . . . . 1 Relay Couplers Released . | . . . . . . . Robots Rewired . | . . . . . . . Allies Hacked . | . . . . . . . Hacks Repelled . | . . . . . . . Allies | -11 -10 -9 -9 -8 -7 -7 -------- Run | Scr Mat Mat Min Mat Fac Low Total Allies . | . . . . . . . Largest Group . | . . . . . . . Highest-Rated Group . | . . . . . . . Highest-Rated Ally . | . . . . . . . Total Orders . | . . . . . . . Ally Attacks . | . . . . . . . Total Damage . | . . . . . . . Kills . | . . . . . . . Allies Corrupted . | . . . . . . . Allies Melted . | . . . . . . . Intel | -11 -10 -9 -9 -8 -7 -7 ------- Run | Scr Mat Mat Min Mat Fac Low Robot Analysis Total 1 | . . . . 1 . . Derelict Logs Recovered . | . . . . . . . Drone Launches . | . . . . . . . Drone Recoveries . | . . . . . . . Exploration | -11 -10 -9 -9 -8 -7 -7 ------------- Run | Scr Mat Mat Min Mat Fac Low Turns Passed 3492 | 80 449 473 225 690 682 893 Spaces Moved 1325 | 47 238 195 121 289 285 150 Core 201 | 25 . . . . 26 150 Treads 1099 | 22 238 195 121 289 234 . Legs . | . . . . . . . Wheels 25 | . . . . . 25 . Hover . | . . . . . . . Flight . | . . . . . . . Fastest Speed 50 | 50 160 160 160 160 100 150 Average Speed 203 | 139 160 160 160 160 188 495 Slowest Speed 700 | 160 160 160 160 180 550 700 Overloaded Moves . | . . . . . . . Propulsion Burnouts . | . . . . . . . Robots Hopped . | . . . . . . . Cave-ins Triggered . | . . . . . . . Exploration Rate (%) 20 | 4 38 17 35 23 8 19 Regions Visited 6 Branch Regions 2 Pre-discovered Areas . | . . . . . . . Known Exits Taken 2 | . . . . 1 1 . Unknown Exits Taken 4 | 1 1 1 1 . . . Scrap Searched 3 | . . . 2 . . 1 Spaces Dug . | . . . . . . . Terrain Destroyed 104 | . . . . 31 59 14 Melee . | . . . . . . . Projectile . | . . . . . . . AOE 104 | . . . . 31 59 14 Terrain Rammed . | . . . . . . . Walls Destroyed . | . . . . . . . Machines Disabled . | . . . . . . . Actions | -11 -10 -9 -9 -8 -7 -7 --------- Run | Scr Mat Mat Min Mat Fac Low Total 1933 | 62 280 335 145 454 392 265 Wait 397 | . 15 121 19 121 61 60 Move 1319 | 46 237 194 120 288 284 150 Hop . | . . . . . . . Pick Up 39 | 9 7 4 1 5 9 4 Fast Attach 2 | . . . . 2 . . Attach 33 | 6 1 2 . 5 8 11 Detach 3 | . . . . 1 . 2 Swap 11 | . 3 1 . 1 4 2 Drop 8 | 1 2 2 1 2 . . Fire 116 | . 12 11 4 29 24 36 Melee . | . . . . . . . Ram . | . . . . . . . Kick . | . . . . . . . Crush 5 | . 3 . . . 2 . Escape Stasis . | . . . . . . . Rewire . | . . . . . . . Trap . | . . . . . . . Miscellaneous . | . . . . . . . Route ------- -11/Scrapyard -10/Materials -9/Materials -9/Mines -8/Materials -7/Factory -7/Lower Caves History --------- Turn | Location | Event 32 | -11/Scrapyard | Discovered new exit (range 15) 81 | -11/Scrapyard | Entered Materials 310 | -10/Materials | Build established: Mutant 516 | -10/Materials | Discovered new exit (range 9) 530 | -10/Materials | Entered another Materials area 530 | -9/Materials | Evolved 2 slots: Utility x2 848 | -9/Materials | Discovered new exit (range 16) 1003 | -9/Materials | Entered Mines 1004 | -9/Mines | Assembled infested the area 1207 | -9/Mines | Discovered new exit (range 14) 1228 | -9/Mines | Entered Materials 1228 | -8/Materials | Evolved 2 slots: Utility x1, Weapon x1 1533 | -8/Materials | Build established: Skirmisher 1827 | -8/Materials | Discovered new exit (range 11) 1917 | -8/Materials | Identified exit to Factory 1918 | -8/Materials | Entered Factory 1918 | -7/Factory | Evolved 2 slots: Power x1, Utility x1 2224 | -7/Factory | Build established: Scavenger-Skirmisher 2536 | -7/Factory | Discovered new exit (range 7) 2545 | -7/Factory | Lost 5 parts (1p1u3w) 2594 | -7/Factory | Identified exit to Lower Caves 2600 | -7/Factory | Entered Lower Caves 2816 | -7/Lower Caves | Spotted B-75 Beast 2848 | -7/Lower Caves | Build established: Mutant 3198 | -7/Lower Caves | Core integrity fell below 50% 3219 | -7/Lower Caves | Lost 8 parts (4u4w) 3231 | -7/Lower Caves | Destroyed B-75 Beast 3482 | -7/Lower Caves | Core integrity fell below 20% 3493 | -7/Lower Caves | Destroyed by S-27 Virus with Autogun Last Messages --------------- 03365_ 0ER5M&OIS<&PDFELHYLBN%RJGG, 03408_ System corrupted: Matter fused (-5). 03411_ Searching scrap... 03411_ Found Recoil Stabilizer. 03411_ Found System Shield. 03411_ Found Imp. Deuterium Engine. 03411_ Found 10 Matter. 03412_ Acquired 10 matter. 03421_ Acquired Imp. Deuterium Engine. 03426_ System corrupted: Matter fused (-5). 03430_ Acquired System Shield. 03445_ Acquired Recoil Stabilizer. 03476_ S-27 Virus springs to life. 03481_ S-27 Virus destroyed. 03483_ Imp. Deuterium Engine destroyed. 03484_ Assault Cannon destroyed. 03486_ VTOL Module fries itself beyond repair. 03487_ System corrupted: Matter fused (-7). 03489_ Lrg. Storage Unit destroyed. 03490_ Adv. Weight Redist. System destroyed. Map ----- +----------------------------------------------------+ | ??????#?##????# ####????????????????????? | | ?##??###????### # #????????????????????? | | ##??#??##?#### #????????????????????? | | #??#####?#### ## #???????#????????????? | | ### #### ### #????????????????????? | | ### #?## ##??????????#?????????? | | ## ############??#????#??????????? | | ## ###??#?## #??????????????????? | | # ##??## ##?????????????????? | | #### ##?????#??????????? | | ##???????????????? | | #?#?????????????? | | #### #???????????????? | | ######## #??#????????????? | | ##??## ##???????????????? | | # ##### ###### ##???????????????? | | #####?### #???# ## #????????????????? | | ??###??## # #?# ## ##???????????????? | | ### #### " ### # ##??????????????? | | ###?# #??????????????? | | ##??## ##??????????????? | | ##"####### # ####???????????????? | | " ## # ##??????????????????? | | "## ##### #########????????????? | | ##?## # #????????????? | | ####?## # ss @ #????????????? | | ##?#??### ######/s/s###### #????????????? | | #???????# #""""" """"??? #????????????? | | ?##????? # " " %* " " ???#????????????? | | ????#??? # #???????????????? | | ??????? # #???????????????? | | ??????? # ####//#### #???????????????? | | ?? ??????# ???? ??? #???????????????? | | ??????? /???? ???? +???????????????? | | ?????? ?????? ?????+???????????????? | | ????????????? ?????????????????????? | | ??????????????? """"?????????????????????? | | ????????????????" """"?????????????????????? | | ????????????????" """"?????????????????????? | | ????????????????? ?????????????????????????? | | ????????????????? ??????????????????????????? | | ????????????????????????????????????????????? | | ????????????????????????????????????????????? | | ????????????????????????????????????????????? | | ????????????????????????????????????????????? | | ????????????????????????????????????????????? | | ????????????????????????????????????????????? | | ????????????????????????????????????????????? | | ????????????????????????????????????????????? | | ????????????????????????????????????????????? | +----------------------------------------------------+ Best States ------------- Heat Dissipation 48 Energy Generation 16 Energy Capacity 290 Matter Stores 450 Matter Capacity 450 Sight Range 16 Robot Scan Range 10 Terrain Scan Range 14 Terrain Scan Density 10 Armor Coverage 150 Resistance: KI 20 Resistance: TH 20 Resistance: EX 20 Resistance: EM 20 Resistance: I 20 Resistance: S 20 Resistance: P 20 Evasion (%) 50 Recoil Reduction 2 Offensive Hacking 10 Defensive Hacking 10 Item Schematics ----------------- None Robot Schematics ------------------ None Fabricated ------------ Nothing Alien Tech Used ----------------- None Achievements -------------- Maybe Next Time I'll Detach My Launcher Challenges ------------ None Game ------ Seed LatentDeliveryTorch Manual? 0 Play Time 00:52:13 Cumulative 6.0 hours Start 2021.06.11 @ 22:32:23 End 2021.06.12 @ 18:35:14 Sessions 3 Manual Loads 0 Difficulty Adventurer Special Mode None Game No. 5 Rogue 0 Adventurer 5 Explorer 0 Win Type - Total 0 Types 0/0/0/0/0/0/0/0/0 Lore% 2 Gallery% 12 Achievement% 10 Wizard Run 0 Options --------- ASCII 0 Keyboard 0 Movement Numpad Keybinds 0 Fullscreen 1 Font 18/SmallcapsGlow Map View 76x50 Tactical HUD 1 Map Filters NONE Filters NONE Steam 1 RUN: 2d928b37-542c-49be-a7c7-f9a6623e327a